[Event "2nd Serbian League-Vojvodina 2023"]
[Site "Novi Sad"]
[Date "2023.11.07"]
[Round "8.2"]
[White "Kopasz, Robert"]
[Black "Szalai, Kornel"]
[Result "0-1"]
[ECO "B50"]
[WhiteElo "2241"]
[BlackElo "2383"]
[Annotator "RC"]
[PlyCount "110"]
[EventDate "2023.10.22"]
[EventType "team-tourn"]
[EventCountry "SRB"]
[SourceTitle "playchess.com"]
[Source "ChessBase"]
[SourceQuality "1"]
[TimeControl "40/5400+30:1800+30"]

1. e4 {[%emt 0:00:33]} c5 {[%emt 0:04:24]} 2. Nf3 {[%emt 0:00:36]} d6 {[%emt 0:03:32]} 3. c3 {[%emt 0:03:13]} Nf6 {[%emt 0:05:20]} 4. Be2 {[%emt 0:01:16]} e6 {[%emt 0:04:17]} 5. O-O {[%emt 0:01:45]} Nbd7 {[%emt 0:00:05]} 6. d3 {[%emt 0:00:54]} c4 {[%emt 0:02:38]} 7. Na3 {[%emt 0:06:41]} cxd3 {[%emt 0:00:19]} 8. Bxd3 {[%emt 0:00:02]} a6 {[%emt 0:02:33]} 9. Bc2 {[%emt 0:11:57]} Qc7 {[%emt 0:07:50]} 10. Bf4 {[%emt 0:06:01]} Be7 {[%emt 0:03:23]} 11. Qe2 {[%emt 0:01:47]} e5 {[%emt 0:12:58]} 12. Bg5 {[%emt 0:03:22]} b5 {[%emt 0:01:07]} 13. Nb1 {[%emt 0:05:40]} Nb6 {[%emt 0:01:47]} 14. Nbd2 {[%emt 0:01:28]} h6 {[%emt 0:08:12]} 15. Be3 {[%emt 0:02:20]} Nfd7 {[%emt 0:02:32]} 16. Rfd1 {[%emt 0:03:15]} Bb7 {[%emt 0:00:47]} 17. Nf1 {[%emt 0:00:42]} O-O {[%emt 0:07:56]} 18. Ng3 {[%emt 0:00:45]} Rfe8 {[%emt 0:00:08]} 19. Nf5 {[%emt 0:18:30]} Bf8 {[%emt 0:00:05]} 20. Bxb6 {[%emt 0:00:39]} Nxb6 {[%emt 0:00:13]} 21. Ne3 {[%emt 0:00:17]} Bc6 {[%emt 0:03:09]} 22. Nd5 {[%emt 0:02:59]} Nxd5 {[%emt 0:02:27]} 23. exd5 {[%emt 0:00:02]} Bd7 {[%emt 0:00:01]} 24. a4 {[%emt 0:04:26]} g6 {[%emt 0:03:41]} 25. axb5 {[%emt 0:02:06]} axb5 {[%emt 0:00:09]} 26. Rxa8 {[%emt 0:00:25]} Rxa8 {[%emt 0:00:04]} 27. Nd2 {[%emt 0:02:29]} h5 {[%emt 0:01:29]} 28. Ne4 {[%emt 0:01:29]} Be7 {[%emt 0:00:21]} 29. h3 {[%emt 0:01:12]} h4 {[%emt 0:04:00]} 30. Qd2 {[%emt 0:00:27]} Kg7 {[%emt 0:00:07]} 31. Bb1 {[%emt 0:02:00]} Qd8 {[%emt 0:00:26]} 32. Qe2 {[%emt 0:01:09]} f5 {[%emt 0:00:49]} 33. Nd2 {[%emt 0:00:09]} Qb6 {[%emt 0:00:36]} 34. Nf3 {[%emt 0:00:25]} Bf6 {[%emt 0:00:15]} 35. Qd2 {[%emt 0:00:55]} b4 {[%emt 0:11:27]} 36. cxb4 {[%emt 0:04:42]} e4 {[%emt 0:00:12]} 37. Ne1 {[%emt 0:03:30]} Ra4 {[%emt 0:00:47]} 38. Nc2 {[%emt 0:02:20]} Bxb2 {[%emt 0:00:17]} 39. Kh1 {[%emt 0:01:02]} Bf6 {[%emt 0:00:26]} 40. Qf4 {[%emt 0:01:54]} Kf7 {[%emt 0:00:53]} 41. Re1 {[%emt 0:32:00]} Bb5 {[%emt 0:31:50]} 42. Ne3 {[%emt 0:01:17]} Bd7 {[%emt 0:01:31]} 43. Qh6 {[%emt 0:01:49]} Qxb4 {[%emt 0:00:13]} 44. Rc1 {[%emt 0:00:24]} Bg7 {[%emt 0:00:49]} 45. Qxh4 {[%emt 0:00:11]} Ra1 {[%emt 0:00:12]} 46. Qd8 {[%emt 0:00:16]} Rxb1 {[%emt 0:00:49]} 47. Qxd7+ {[%emt 0:00:06]} Kg8 {[%emt 0:00:10]} 48. Qc8+ {[%emt 0:00:26]} Kh7 {[%emt 0:00:07]} 49. Rxb1 {[%emt 0:01:00]} Qxb1+ {[%emt 0:00:06]} 50. Kh2 {[%emt 0:00:02]} Qe1 {[%emt 0:01:08]} 51. Qc2 {[%emt 0:01:05]} Bd4 {[%emt 0:00:40]} 52. Qd1 {[%emt 0:01:20]} Qxd1 {[%emt 0:00:26]} 53. Nxd1 {[%emt 0:00:01]} f4 {[%emt 0:00:08]} 54. Kg1 {[%emt 0:01:28]} Kg7 {[%emt 0:00:19]} 55. Kf1 {[%emt 0:00:07]} Kf6 {[%emt 0:00:25]} 0-1

[Event "2nd Serbian League-Vojvodina 2023"]
[Site "Novi Sad"]
[Date "2023.11.07"]
[Round "8.3"]
[White "Nadj Hedjesi, Balind"]
[Black "Nagy, Attila N"]
[Result "1-0"]
[ECO "B43"]
[WhiteElo "2227"]
[BlackElo "2164"]
[Annotator "RC"]
[PlyCount "90"]
[EventDate "2023.10.22"]
[EventType "team-tourn"]
[EventCountry "SRB"]
[SourceTitle "playchess.com"]
[Source "ChessBase"]
[SourceQuality "1"]
[TimeControl "40/5400+30:1800+30"]

1. e4 {[%emt 0:00:45]} c5 {[%emt 0:00:19]} 2. Nc3 {[%emt 0:00:30]} e6 {[%emt 0:00:47]} 3. Nf3 {[%emt 0:01:25]} a6 {[%emt 0:02:35]} 4. d4 {[%emt 0:00:14]} cxd4 {[%emt 0:00:25]} 5. Nxd4 {[%emt 0:00:01]} Qc7 {[%emt 0:01:36]} 6. Be3 {[%emt 0:08:21]} Nf6 {[%emt 0:01:49]} 7. a3 {[%emt 0:05:16]} b5 {[%emt 0:01:34]} 8. Bd3 {[%emt 0:03:20]} Bb7 {[%emt 0:00:28]} 9. Qe2 {[%emt 0:01:41]} Be7 {[%emt 0:11:51]} 10. f4 {[%emt 0:05:36]} d6 {[%emt 0:06:50]} 11. g4 {[%emt 0:03:12]} d5 {[%emt 0:01:54]} 12. e5 {[%emt 0:07:10]} Ne4 {[%emt 0:01:19]} 13. Bxe4 {[%emt 0:06:29]} dxe4 {[%emt 0:06:35]} 14. Qf2 {[%emt 0:05:30]} Nd7 {[%emt 0:02:10]} 15. h4 {[%emt 0:03:55]} Rc8 {[%emt 0:14:34]} 16. Rh3 {[%emt 0:03:02]} b4 {[%emt 0:07:14]} 17. axb4 {[%emt 0:05:21]} Bxb4 {[%emt 0:00:12]} 18. Bd2 {[%emt 0:00:51]} Bc5 {[%emt 0:01:45]} 19. Na4 {[%emt 0:01:59]} Be7 {[%emt 0:09:30]} 20. Rc3 {[%emt 0:02:55]} Qd8 {[%emt 0:00:03]} 21. Rxc8 {[%emt 0:00:45]} Qxc8 {[%emt 0:00:11]} 22. h5 {[%emt 0:02:30]} O-O {[%emt 0:06:09]} 23. g5 {[%emt 0:02:50]} Bd5 {[%emt 0:22:10]} 24. h6 {[%emt 0:05:15]} g6 {[%emt 0:00:00]} 25. Qe3 {[%emt 0:02:01]} Qb8 {[%emt 0:00:00]} 26. c4 {[%emt 0:04:34]} Ba8 {[%emt 0:00:00]} 27. Qb3 {[%emt 0:02:26]} Qc7 {[%emt 0:00:00]} 28. Qc3 {[%emt 0:03:51]} Rb8 {[%emt 0:00:00]} 29. O-O-O {[%emt 0:04:02]} e3 {[%emt 0:00:24]} 30. Bxe3 {[%emt 0:01:03]} Be4 {[%emt 0:00:14]} 31. Nc2 {[%emt 0:00:48]} Qc6 {[%emt 0:01:13]} 32. b3 {[%emt 0:00:23]} Qb7 {[%emt 0:01:45]} 33. Kb2 {[%emt 0:05:49]} Bc6 {[%emt 0:00:12]} 34. Ra1 {[%emt 0:00:01]} Be4 {[%emt 0:00:23]} 35. Bd4 {[%emt 0:00:33]} Rc8 {[%emt 0:00:58]} 36. Rd1 {[%emt 0:00:56]} Bf3 {[%emt 0:00:08]} 37. Rd3 {[%emt 0:00:28]} Bc6 {[%emt 0:00:01]} 38. Kc1 {[%emt 0:03:06]} Bxa4 {[%emt 0:00:47]} 39. bxa4 {[%emt 0:00:01]} Qc6 {[%emt 0:01:55]} 40. a5 {[%emt 0:00:35]} Qa4 {[%emt 0:00:00]} 41. Ne3 {[%emt 0:30:22]} Nc5 {[%emt 0:30:10]} 42. Bxc5 {[%emt 0:00:40]} Bxc5 {[%emt 0:00:01]} 43. Nc2 {[%emt 0:00:14]} Bf8 {[%emt 0:00:41]} 44. Rd4 {[%emt 0:00:21]} Bc5 {[%emt 0:00:04]} 45. Rd6 {[%emt 0:00:21]} Qa2 {[%emt 0:02:04]} 1-0

[Event "2nd Serbian League-Vojvodina 2023"]
[Site "Novi Sad"]
[Date "2023.11.07"]
[Round "8.4"]
[White "Gusev, Mikhail"]
[Black "Farkas, Tibor"]
[Result "1/2-1/2"]
[ECO "D00"]
[WhiteElo "2012"]
[BlackElo "2210"]
[Annotator "RC"]
[PlyCount "123"]
[EventDate "2023.10.22"]
[EventType "team-tourn"]
[EventCountry "SRB"]
[SourceTitle "playchess.com"]
[Source "ChessBase"]
[SourceQuality "1"]
[TimeControl "40/5400+30:1800+30"]

1. d4 {[%emt 0:00:04]} Nf6 {[%emt 0:00:45]} 2. Nc3 {[%emt 0:00:11]} d5 {[%emt 0:01:17]} 3. Bf4 {[%emt 0:00:11]} a6 {[%emt 0:00:43]} 4. e3 {[%emt 0:00:48]} e6 {[%emt 0:04:36]} 5. Nf3 {[%emt 0:01:36]} c5 {[%emt 0:00:47]} 6. a4 {[%emt 0:03:15]} Nc6 {[%emt 0:01:15]} 7. Be2 {[%emt 0:01:56]} Bd6 {[%emt 0:01:42]} 8. Ne5 {[%emt 0:08:28]} Qc7 {[%emt 0:35:01]} 9. Nxc6 {[%emt 0:06:11]} Bxf4 {[%emt 0:00:49]} 10. exf4 {[%emt 0:01:11]} bxc6 {[%emt 0:00:35]} 11. g3 {[%emt 0:13:45]} Qb6 {[%emt 0:08:16]} 12. a5 {[%emt 0:28:57]} Qxb2 {[%emt 0:02:25]} 13. Na4 {[%emt 0:00:25]} Qxd4 {[%emt 0:02:10]} 14. Qxd4 {[%emt 0:00:17]} cxd4 {[%emt 0:00:03]} 15. Nb6 {[%emt 0:00:07]} Rb8 {[%emt 0:00:20]} 16. Nxc8 {[%emt 0:00:41]} Rxc8 {[%emt 0:00:02]} 17. Bxa6 {[%emt 0:00:10]} Rc7 {[%emt 0:00:31]} 18. O-O {[%emt 0:02:14]} Ke7 {[%emt 0:01:20]} 19. Rfb1 {[%emt 0:01:33]} Ra8 {[%emt 0:00:48]} 20. Bb7 {[%emt 0:00:50]} Ra7 {[%emt 0:00:18]} 21. a6 {[%emt 0:00:09]} Nd7 {[%emt 0:11:17]} 22. Ra4 {[%emt 0:10:19]} c5 {[%emt 0:10:02]} 23. Kf1 {[%emt 0:05:00]} c4 {[%emt 0:00:40]} 24. Rab4 {[%emt 0:07:15]} Nc5 {[%emt 0:01:07]} 25. Rb6 {[%emt 0:00:10]} Kd7 {[%emt 0:01:08]} 26. f3 {[%emt 0:04:13]} g6 {[%emt 0:00:23]} 27. Ke1 {[%emt 0:00:48]} d3 {[%emt 0:01:21]} 28. cxd3 {[%emt 0:00:40]} Nxd3+ {[%emt 0:00:04]} 29. Kd2 {[%emt 0:00:16]} Nc5 {[%emt 0:00:15]} 30. R1b4 {[%emt 0:01:24]} Nb3+ {[%emt 0:02:03]} 31. Rxb3 {[%emt 0:01:28]} cxb3 {[%emt 0:00:02]} 32. Rxb3 {[%emt 0:00:00]} Rc4 {[%emt 0:00:55]} 33. Ke3 {[%emt 0:01:21]} h5 {[%emt 0:04:18]} 34. g4 {[%emt 0:01:04]} h4 {[%emt 0:00:34]} 35. f5 {[%emt 0:00:19]} g5 {[%emt 0:00:38]} 36. fxe6+ {[%emt 0:00:24]} fxe6 {[%emt 0:00:02]} 37. h3 {[%emt 0:00:13]} Ra4 {[%emt 0:00:52]} 38. Kd3 {[%emt 0:00:38]} Kd6 {[%emt 0:01:52]} 39. Rb6+ {[%emt 0:00:53]} Ke5 {[%emt 0:00:02]} 40. Rb3 {[%emt 0:00:34]} Kf4 {[%emt 0:01:18]} 41. Rb6 {[%emt 0:30:18]} e5 {[%emt 0:36:15]} 42. Rf6+ {[%emt 0:00:31]} Kg3 {[%emt 0:00:02]} 43. Rf5 {[%emt 0:00:01]} Ra3+ {[%emt 0:00:12]} 44. Ke2 {[%emt 0:00:18]} Kxh3 {[%emt 0:02:07]} 45. Rxe5 {[%emt 0:00:28]} R7xa6 {[%emt 0:00:45]} 46. Bxa6 {[%emt 0:00:12]} Rxa6 {[%emt 0:00:01]} 47. Rxd5 {[%emt 0:00:22]} Kg2 {[%emt 0:00:32]} 48. Rxg5 {[%emt 0:00:45]} Re6+ {[%emt 0:00:02]} 49. Kd3 {[%emt 0:01:14]} Rh6 {[%emt 0:00:57]} 50. Ke3 {[%emt 0:00:49]} Re6+ {[%emt 0:00:48]} 51. Kf4 {[%emt 0:00:19]} h3 {[%emt 0:00:46]} 52. Rh5 {[%emt 0:00:31]} Rf6+ {[%emt 0:00:10]} 53. Ke5 {[%emt 0:00:05]} Rxf3 {[%emt 0:00:09]} 54. g5 {[%emt 0:00:09]} h2 {[%emt 0:00:49]} 55. g6 {[%emt 0:00:14]} Rh3 {[%emt 0:00:29]} 56. Rxh3 {[%emt 0:00:24]} Kxh3 {[%emt 0:00:01]} 57. g7 {[%emt 0:00:08]} h1=Q {[%emt 0:00:12]} 58. g8=Q {[%emt 0:00:06]} Qe1+ {[%emt 0:00:14]} 59. Kf6 {[%emt 0:00:08]} Qf2+ {[%emt 0:00:07]} 60. Kg7 {[%emt 0:00:05]} Qg3+ {[%emt 0:00:11]} 61. Kf8 {[%emt 0:00:03]} Qxg8+ {[%emt 0:00:05]} 62. Kxg8 {[%emt 0:01:26]} 1/2-1/2

[Event "2nd Serbian League-Vojvodina 2023"]
[Site "Novi Sad"]
[Date "2023.11.07"]
[Round "8.5"]
[White "Juhasz, Bence R"]
[Black "Levitan, Judah Nathan"]
[Result "0-1"]
[ECO "E40"]
[WhiteElo "2210"]
[BlackElo "1937"]
[Annotator "RC"]
[PlyCount "62"]
[EventDate "2023.10.22"]
[EventType "team-tourn"]
[EventCountry "SRB"]
[SourceTitle "playchess.com"]
[Source "ChessBase"]
[SourceQuality "1"]
[TimeControl "40/5400+30:1800+30"]

1. d4 {[%emt 0:00:54]} Nf6 {[%emt 0:00:22]} 2. c4 {[%emt 0:00:40]} e6 {[%emt 0:00:05]} 3. Nc3 {[%emt 0:00:30]} Bb4 {[%emt 0:00:14]} 4. e3 {[%emt 0:00:28]} d5 {[%emt 0:00:43]} 5. Bd3 {[%emt 0:01:07]} dxc4 {[%emt 0:00:38]} 6. Bxc4 {[%emt 0:00:08]} c5 {[%emt 0:00:03]} 7. a3 {[%emt 0:03:03]} Ba5 {[%emt 0:00:44]} 8. Nf3 {[%emt 0:02:05]} Nc6 {[%emt 0:04:25]} 9. O-O {[%emt 0:00:47]} cxd4 {[%emt 0:03:01]} 10. exd4 {[%emt 0:01:06]} h6 {[%emt 1:25:15]} 11. Qd3 {[%emt 0:03:03]} O-O {[%emt 0:00:00]} 12. Be3 {[%emt 0:01:28]} Ne7 {[%emt 0:00:00]} 13. Rad1 {[%emt 0:04:56]} Ned5 {[%emt 0:00:00]} 14. Ne2 {[%emt 0:01:09]} a6 {[%emt 0:00:00]} 15. Ba2 {[%emt 0:01:55]} b5 {[%emt 0:00:00]} 16. Bb1 {[%emt 0:03:14]} Bb7 {[%emt 0:00:00]} 17. Ng3 {[%emt 0:00:23]} Ne7 {[%emt 0:00:00]} 18. Ne5 {[%emt 0:06:07]} Bc7 {[%emt 0:04:00]} 19. Bf4 {[%emt 0:12:36]} Rc8 {[%emt 0:00:00]} 20. Rfe1 {[%emt 0:54:51]} Bxe5 {[%emt 0:00:00]} 21. Bxe5 {[%emt 0:00:00]} Ng6 {[%emt 0:00:00]} 22. h4 {[%emt 0:00:00]} Ng4 {[%emt 0:02:00]} 23. h5 {[%emt 0:00:00]} Qh4 {[%emt 0:00:00]} 24. f3 {[%emt 0:00:00]} Qh2+ {[%emt 0:00:00]} 25. Kf1 {[%emt 0:00:00]} Bd5 {[%emt 0:01:30]} 26. b3 {[%emt 0:00:00]} f5 {[%emt 0:00:00]} 27. hxg6 {[%emt 0:00:00]} f4 {[%emt 0:00:00]} 28. Re4 {[%emt 0:00:49]} fxg3 {[%emt 0:01:30]} 29. Rxg4 {[%emt 0:03:41]} Qh1+ {[%emt 0:00:30]} 30. Ke2 {[%emt 0:00:00]} Qxg2+ {[%emt 0:00:00]} 31. Ke1 {[%emt 0:00:00]} Qf2# {[%emt 0:00:00]} 0-1

[Event "2nd Serbian League-Vojvodina 2023"]
[Site "Novi Sad"]
[Date "2023.11.07"]
[Round "8.6"]
[White "Molnar Gabor, Roland"]
[Black "Kecskemeti, Arpad"]
[Result "0-1"]
[ECO "A84"]
[WhiteElo "2041"]
[BlackElo "2185"]
[Annotator "RC"]
[PlyCount "86"]
[EventDate "2023.10.22"]
[EventType "team-tourn"]
[EventCountry "SRB"]
[SourceTitle "playchess.com"]
[Source "ChessBase"]
[SourceQuality "1"]
[TimeControl "40/5400+30:1800+30"]

1. d4 {[%emt 0:00:02]} f5 {[%emt 0:00:23]} 2. c4 {[%emt 0:01:06]} Nf6 {[%emt 0:00:33]} 3. Nc3 {[%emt 0:00:09]} e6 {[%emt 0:00:27]} 4. Nf3 {[%emt 0:02:08]} Bb4 {[%emt 0:01:01]} 5. a3 {[%emt 0:03:55]} Bxc3+ {[%emt 0:02:30]} 6. bxc3 {[%emt 0:00:06]} O-O {[%emt 0:00:21]} 7. g3 {[%emt 0:02:11]} b6 {[%emt 0:01:06]} 8. Bg2 {[%emt 0:01:03]} Bb7 {[%emt 0:01:06]} 9. O-O {[%emt 0:00:43]} d6 {[%emt 0:04:26]} 10. c5 {[%emt 0:04:23]} bxc5 {[%emt 0:18:39]} 11. Qb3 {[%emt 0:04:56]} Bd5 {[%emt 0:05:56]} 12. c4 {[%emt 0:02:35]} Be4 {[%emt 0:02:19]} 13. dxc5 {[%emt 0:04:50]} dxc5 {[%emt 0:01:37]} 14. Ng5 {[%emt 0:09:29]} Bxg2 {[%emt 0:02:35]} 15. Kxg2 {[%emt 0:00:01]} Re8 {[%emt 0:13:48]} 16. Qb7 {[%emt 0:07:38]} Nbd7 {[%emt 0:03:39]} 17. Rd1 {[%emt 0:05:36]} Qc8 {[%emt 0:09:05]} 18. Rb1 {[%emt 0:08:58]} Nb6 {[%emt 0:05:04]} 19. Qc6 {[%emt 0:04:37]} h6 {[%emt 0:05:14]} 20. Nh3 {[%emt 0:10:47]} e5 {[%emt 0:01:22]} 21. Qxc5 {[%emt 0:08:17]} Ne4 {[%emt 0:01:32]} 22. Qb4 {[%emt 0:00:56]} Qe6 {[%emt 0:02:36]} 23. f3 {[%emt 0:03:44]} c5 {[%emt 0:06:21]} 24. Qb3 {[%emt 0:04:16]} Nd6 {[%emt 0:00:13]} 25. Be3 {[%emt 0:04:01]} Rac8 {[%emt 0:00:11]} 26. Bg1 {[%emt 0:02:07]} Ndxc4 {[%emt 0:01:18]} 27. Nf2 {[%emt 0:00:23]} Nd5 {[%emt 0:01:20]} 28. Kh1 {[%emt 0:01:55]} Nce3 {[%emt 0:00:37]} 29. Rdc1 {[%emt 0:00:55]} c4 {[%emt 0:00:08]} 30. Qa4 {[%emt 0:01:14]} c3 {[%emt 0:04:02]} 31. Nd3 {[%emt 0:02:21]} c2 {[%emt 0:03:52]} 32. Rb7 {[%emt 0:00:25]} a6 {[%emt 0:01:25]} 33. Ra7 {[%emt 0:00:34]} Nc3 {[%emt 0:01:03]} 34. Qxa6 {[%emt 0:00:36]} Qxa6 {[%emt 0:00:52]} 35. Rxa6 {[%emt 0:00:01]} Nxe2 {[%emt 0:00:20]} 36. Bxe3 {[%emt 0:00:12]} e4 {[%emt 0:00:49]} 37. fxe4 {[%emt 0:00:41]} Nxc1 {[%emt 0:00:15]} 38. Nxc1 {[%emt 0:00:50]} Rxe4 {[%emt 0:00:07]} 39. Bf2 {[%emt 0:00:47]} Rd8 {[%emt 0:00:31]} 40. Kg2 {[%emt 0:00:25]} Rd1 {[%emt 0:00:22]} 41. Ra8+ {[%emt 0:30:30]} Kh7 {[%emt 0:30:06]} 42. Nb3 {[%emt 0:00:13]} Rc4 {[%emt 0:00:27]} 43. Ra5 {[%emt 0:00:52]} Rb1 {[%emt 0:00:09]} 0-1

[Event "2nd Serbian League-Vojvodina 2023"]
[Site "Novi Sad"]
[Date "2023.11.07"]
[Round "8.7"]
[White "Somborski, Nebojsa"]
[Black "Bokros, Albert"]
[Result "1/2-1/2"]
[ECO "B84"]
[WhiteElo "2266"]
[BlackElo "2447"]
[Annotator "RC"]
[PlyCount "37"]
[EventDate "2023.10.22"]
[EventType "team-tourn"]
[EventCountry "SRB"]
[SourceTitle "playchess.com"]
[Source "ChessBase"]
[SourceQuality "1"]
[TimeControl "40/5400+30:1800+30"]

1. e4 {[%emt 0:00:11]} c5 {[%emt 0:00:08]} 2. Nf3 {[%emt 0:00:30]} e6 {[%emt 0:00:04]} 3. d4 {[%emt 0:00:42]} cxd4 {[%emt 0:00:06]} 4. Nxd4 {[%emt 0:00:17]} Nf6 {[%emt 0:00:05]} 5. Nc3 {[%emt 0:00:10]} d6 {[%emt 0:00:12]} 6. Be2 {[%emt 0:00:52]} a6 {[%emt 0:00:06]} 7. O-O {[%emt 0:02:24]} Nbd7 {[%emt 0:00:04]} 8. a4 {[%emt 0:02:31]} b6 {[%emt 0:00:15]} 9. f4 {[%emt 0:00:37]} Bb7 {[%emt 0:00:06]} 10. Bf3 {[%emt 0:00:15]} Rc8 {[%emt 0:00:46]} 11. Qe2 {[%emt 0:02:08]} Qc7 {[%emt 0:01:54]} 12. Kh1 {[%emt 0:00:45]} Be7 {[%emt 0:01:07]} 13. e5 {[%emt 0:11:19]} Bxf3 {[%emt 0:05:07]} 14. Nxf3 {[%emt 0:01:46]} dxe5 {[%emt 0:06:09]} 15. fxe5 {[%emt 0:00:45]} Ng4 {[%emt 0:03:44]} 16. Qxa6 {[%emt 0:06:31]} O-O {[%emt 0:05:57]} 17. Bf4 {[%emt 0:08:50]} Bb4 {[%emt 0:15:35]} 18. Na2 {[%emt 0:08:57]} Be7 {[%emt 0:04:07]} 19. Nc3 {[%emt 0:01:08]} 1/2-1/2

[Event "2nd Serbian League-Vojvodina 2023"]
[Site "Novi Sad"]
[Date "2023.11.07"]
[Round "8.8"]
[White "Varga, Zoltan"]
[Black "Jakovljev, Zoran"]
[Result "1-0"]
[ECO "A42"]
[WhiteElo "2356"]
[BlackElo "2194"]
[Annotator "RC"]
[PlyCount "85"]
[EventDate "2023.10.22"]
[EventType "team-tourn"]
[EventCountry "SRB"]
[SourceTitle "playchess.com"]
[Source "ChessBase"]
[SourceQuality "1"]
[TimeControl "40/5400+30:1800+30"]

1. c4 {[%emt 0:00:03]} g6 {[%emt 0:00:10]} 2. d4 {[%emt 0:00:13]} Bg7 {[%emt 0:00:02]} 3. e4 {[%emt 0:00:05]} d6 {[%emt 0:00:10]} 4. Nc3 {[%emt 0:00:13]} Nd7 {[%emt 0:00:03]} 5. Bg5 {[%emt 0:02:31]} f6 {[%emt 0:00:22]} 6. Be3 {[%emt 0:00:30]} e5 {[%emt 0:00:04]} 7. h4 {[%emt 0:05:04]} Nh6 {[%emt 0:05:37]} 8. f3 {[%emt 0:08:24]} c6 {[%emt 0:01:18]} 9. Nge2 {[%emt 0:01:43]} O-O {[%emt 0:01:42]} 10. Qd2 {[%emt 0:00:54]} Nf7 {[%emt 0:00:14]} 11. g4 {[%emt 0:00:17]} Re8 {[%emt 0:00:22]} 12. O-O-O {[%emt 0:00:35]} Qe7 {[%emt 0:00:48]} 13. Kb1 {[%emt 0:00:53]} Nf8 {[%emt 0:03:02]} 14. h5 {[%emt 0:19:24]} g5 {[%emt 0:01:11]} 15. Ng3 {[%emt 0:00:05]} a6 {[%emt 0:05:18]} 16. a3 {[%emt 0:10:51]} h6 {[%emt 0:00:48]} 17. Be2 {[%emt 0:02:48]} Qc7 {[%emt 0:02:48]} 18. Qc2 {[%emt 0:05:49]} exd4 {[%emt 0:08:57]} 19. Bxd4 {[%emt 0:03:13]} Ne6 {[%emt 0:00:38]} 20. Be3 {[%emt 0:02:05]} Ne5 {[%emt 0:01:37]} 21. Nf5 {[%emt 0:01:42]} Bf8 {[%emt 0:00:08]} 22. Rc1 {[%emt 0:03:20]} Nf7 {[%emt 0:01:21]} 23. Na4 {[%emt 0:01:26]} Nc5 {[%emt 0:01:10]} 24. Nxd6 {[%emt 0:00:42]} Bxd6 {[%emt 0:00:46]} 25. Nxc5 {[%emt 0:00:18]} b6 {[%emt 0:00:43]} 26. Na4 {[%emt 0:00:51]} c5 {[%emt 0:01:48]} 27. Rcd1 {[%emt 0:00:17]} Be5 {[%emt 0:00:08]} 28. Rd3 {[%emt 0:05:38]} Nd8 {[%emt 0:00:26]} 29. Rb3 {[%emt 0:02:15]} Rb8 {[%emt 0:00:31]} 30. Nc3 {[%emt 0:00:12]} Ne6 {[%emt 0:07:22]} 31. Nd5 {[%emt 0:01:10]} Qc6 {[%emt 0:03:18]} 32. Rd3 {[%emt 0:06:44]} b5 {[%emt 0:00:13]} 33. cxb5 {[%emt 0:01:29]} axb5 {[%emt 0:02:02]} 34. Rc1 {[%emt 0:00:29]} c4 {[%emt 0:00:49]} 35. Nb4 {[%emt 0:00:04]} Qc7 {[%emt 0:01:28]} 36. Rd5 {[%emt 0:00:03]} Bb7 {[%emt 0:01:38]} 37. Rxb5 {[%emt 0:01:14]} Bxe4 {[%emt 0:01:21]} 38. Qxe4 {[%emt 0:01:34]} Rxb5 {[%emt 0:01:32]} 39. Bxc4 {[%emt 0:00:06]} Rxb4 {[%emt 0:02:12]} 40. Bxe6+ {[%emt 0:01:23]} Kh8 {[%emt 0:05:37]} 41. axb4 {[%emt 0:31:44]} Qe7 {[%emt 0:32:19]} 42. Rc6 {[%emt 0:00:38]} Qd8 {[%emt 0:01:13]} 43. Qg6 {[%emt 0:01:21]} 1-0

[Event "2nd Serbian League-Vojvodina 2023"]
[Site "Novi Sad"]
[Date "2023.11.07"]
[Round "8.9"]
[White "Popovic, Zoran"]
[Black "Strbac, Mladen"]
[Result "1/2-1/2"]
[ECO "A89"]
[WhiteElo "2210"]
[BlackElo "2246"]
[Annotator "RC"]
[PlyCount "32"]
[EventDate "2023.10.22"]
[EventType "team-tourn"]
[EventCountry "SRB"]
[SourceTitle "playchess.com"]
[Source "ChessBase"]
[SourceQuality "1"]
[TimeControl "40/5400+30:1800+30"]

1. d4 {[%emt 0:00:08]} d6 {[%emt 0:00:09]} 2. c4 {[%emt 0:00:15]} f5 {[%emt 0:00:12]} 3. Nc3 {[%emt 0:02:53]} Nf6 {[%emt 0:00:25]} 4. Nf3 {[%emt 0:00:19]} g6 {[%emt 0:00:11]} 5. g3 {[%emt 0:00:54]} Bg7 {[%emt 0:00:23]} 6. Bg2 {[%emt 0:00:14]} O-O {[%emt 0:00:22]} 7. O-O {[%emt 0:00:10]} Nc6 {[%emt 0:00:20]} 8. d5 {[%emt 1:29:37]} Ne5 {[%emt 0:00:16]} 9. Nxe5 {[%emt 0:00:00]} dxe5 {[%emt 0:00:05]} 10. b3 {[%emt 0:01:00]} a6 {[%emt 1:33:07]} 11. a4 {[%emt 0:00:30]} e4 {[%emt 0:00:00]} 12. Qc2 {[%emt 0:00:00]} c6 {[%emt 0:01:00]} 13. dxc6 {[%emt 0:01:00]} bxc6 14. Rd1 Qc7 {[%emt 0:01:00]} 15. a5 {[%emt 0:01:00]} c5 {[%emt 0:00:30]} 16. Rf1 {[%emt 0:00:30]} Qd8 {[%emt 0:00:30]} 1/2-1/2

[Event "2nd Serbian League-Vojvodina 2023"]
[Site "Novi Sad"]
[Date "2023.11.07"]
[Round "8.10"]
[White "Milanovic, Marko"]
[Black "Telecki, Ivan"]
[Result "1-0"]
[ECO "B06"]
[WhiteElo "2248"]
[BlackElo "2260"]
[Annotator "RC"]
[PlyCount "53"]
[EventDate "2023.10.22"]
[EventType "team-tourn"]
[EventCountry "SRB"]
[SourceTitle "playchess.com"]
[Source "ChessBase"]
[SourceQuality "1"]
[TimeControl "40/5400+30:1800+30"]

1. e4 {[%emt 0:00:10]} g6 {[%emt 0:00:06]} 2. d4 {[%emt 0:00:47]} d6 {[%emt 0:00:09]} 3. Nc3 {[%emt 0:01:42]} Bg7 {[%emt 0:00:08]} 4. Nf3 {[%emt 0:01:55]} Nd7 {[%emt 0:00:12]} 5. Bc4 {[%emt 0:01:57]} e6 {[%emt 0:02:22]} 6. O-O {[%emt 0:02:42]} Ne7 {[%emt 0:08:34]} 7. Be3 {[%emt 0:04:06]} Nb6 {[%emt 0:04:05]} 8. Bd3 {[%emt 0:04:28]} d5 {[%emt 0:05:16]} 9. e5 {[%emt 0:03:36]} Bd7 {[%emt 0:17:26]} 10. Qc1 {[%emt 0:09:24]} h6 {[%emt 0:01:18]} 11. b3 {[%emt 1:05:13]} Bc6 {[%emt 0:56:24]} 12. Ne2 {[%emt 0:00:30]} Nf5 {[%emt 0:00:30]} 13. Bxf5 {[%emt 0:00:00]} gxf5 {[%emt 0:00:30]} 14. Ng3 {[%emt 0:00:00]} Qe7 {[%emt 0:00:00]} 15. Nh5 {[%emt 0:01:30]} f6 {[%emt 0:01:00]} 16. Bf4 {[%emt 0:00:00]} Nd7 {[%emt 0:00:00]} 17. Re1 {[%emt 0:01:00]} O-O-O {[%emt 0:00:00]} 18. Nxg7 {[%emt 0:00:00]} Qxg7 {[%emt 0:00:00]} 19. exf6 {[%emt 0:00:00]} Nxf6 {[%emt 0:00:00]} 20. Rxe6 {[%emt 0:00:00]} Rdg8 {[%emt 0:02:30]} 21. g3 {[%emt 0:00:00]} Qg4 {[%emt 0:00:00]} 22. Ne5 {[%emt 0:00:00]} Qg7 {[%emt 0:01:00]} 23. Nxc6 {[%emt 0:00:00]} bxc6 {[%emt 0:00:30]} 24. Rxc6 {[%emt 0:00:00]} Ne8 {[%emt 0:00:30]} 25. Be5 {[%emt 0:00:00]} Qd7 {[%emt 0:00:00]} 26. Ra6 {[%emt 0:00:00]} Kb7 {[%emt 0:00:00]} 27. Qa3 {[%emt 0:00:00]} 1-0